Cogmind - Beta 13 @@@ ROGUE MODE // 2024.03.30 @ 15:09:49 Player: gabr Result: Core destroyed Performance ------------- Evolutions (0) 0 Regions Visited (2) 400 Robots Destroyed (25) 125 Value Destroyed (513) 513 Prototype IDs (0) 0 Alien Tech Used (0) 0 Bonus (0) 0 TOTAL SCORE: 1038 Bonus ------- None Cogmind --------- Core Integrity 0/250 Matter 272/400 Energy 81/100 System Corruption 1% Temperature Critical (549) Movement Rolling (90) Location -10/Mines Parts ------- > --- POWER (1) -------- (None) > --- PROPULSION (2) --- Wheel Compact Wheel > --- UTILITY (2) ------ Medium Storage Unit Medium Matter Pod > --- WEAPON (2) ------- Small Laser Particle Gun > --- INVENTORY (10) --- Light Ion Engine Light Treads Light Treads Aluminum Leg Wheel Medium Storage Unit Small Laser Mining Laser Mining Laser Peak State ------------ > --- POWER ------------ Light Ion Engine > --- PROPULSION ------- Wheel Wheel > --- UTILITY ---------- Medium Storage Unit Medium Matter Pod > --- WEAPON ----------- Particle Gun Light Assault Rifle > --- INVENTORY -------- Light Ion Engine Light Treads Light Treads Aluminum Leg Wheel Medium Storage Unit Small Laser Small Laser Mining Laser Mining Laser [Rating: 9] Favorites ----------- Power Light Ion Engine Engine Light Ion Engine Propulsion Aluminum Leg Treads Light Treads Leg Aluminum Leg Wheel Wheel Utility Medium Matter Pod Storage Medium Matter Pod Weapon Light Assault Rifle Energy Gun Particle Gun Ballistic Gun Light Assault Rifle Special Weapon Mining Laser Build | -11 -10 -10 ------- Run | Yrd Mat Min Slots Evolved . | . . . Power . | . . . Propulsion . | . . . Utility . | . . . Weapon . | . . . Parts Attached 29 | 7 12 10 Power 4 | 1 1 2 Engine 4 | 1 1 2 Core . | . . . Reactor . | . . . Propulsion 11 | 2 5 4 Treads 2 | . 2 . Leg 5 | 2 3 . Wheel 4 | . . 4 Hover . | . . . Flight . | . . . Utility 4 | 1 3 . Device . | . . . Storage 4 | 1 3 . Processor . | . . . Hackware . | . . . Protection . | . . . Artifact . | . . . Weapon 10 | 3 3 4 Energy Gun 6 | 2 2 2 Energy Cannon . | . . . Ballistic Gun 3 | 1 1 1 Ballistic Cannon . | . . . Launcher . | . . . Special Weapon 1 | . . 1 Impact Weapon . | . . . Slashing Weapon . | . . . Piercing Weapon . | . . . Special Melee Weapon . | . . . Unidentified Prototypes . | . . . Parts Lost 6 | . 5 1 Power 3 | . 2 1 Propulsion 2 | . 2 . Utility . | . . . Weapon 1 | . 1 . Highest Loss Streak 3 | . 3 1 To Critical Strikes . | . . . Average Slot Usage (%) 88 | . 87 90 Engine 7 | . 8 5 Treads 7 | . 12 . Leg 11 | . 14 8 Wheel 8 | . . 19 Storage 25 | . 24 28 Energy Gun 12 | . 11 12 Ballistic Gun 14 | . 15 12 Special Weapon 1 | . . 2 Naked Turns . | . . . Heaviest Build 19 | 10 16 19 Greatest Support 40 | 20 40 26 Greatest Overweight (x) 5 | . 2 5 Average Overweight (x) . | . . . Largest Inventory Capacity 10 | 8 10 10 Average Capacity 8 | 6 8 10 Most Carried 10 | 6 10 10 Average Carried 8 | 2 7 9 Final Capacity 10 | 8 10 10 Final Carried 10 | 6 10 9 Class Distribution -------------------- 86% | Mutant 13% | Scavenger-Mutant Dominant Class ---------------- Mutant | -10/Materials Mutant | -10/Mines Resources | -11 -10 -10 ----------- Run | Yrd Mat Min Matter Collected 638 | 242 318 78 Remotely . | . . . Salvage Created 775 | . 551 224 Parts 45 | . 26 19 Haulers Intercepted 2 | . 2 . Recyclers Shooed 2 | . 2 . Parts Field Recycled . | . . . Retrieved Matter . | . . . Parts Self-Destructed . | . . . Prevented . | . . . Kills | -11 -10 -10 ------- Run | Yrd Mat Min Combat Hostiles Destroyed 17 | . 12 5 Guns 17 | . 12 5 Classes Destroyed 6 | . 4 2 Tunneler 3 | . . 3 Hauler 2 | . 2 . Recycler 2 | . . 2 Operator 1 | . 1 . Swarmer 6 | . 3 3 Grunt 11 | . 9 2 Best Kill Streak 5 | . 5 4 Combat Bots Only 5 | . 5 2 Max Kills in Single Turn 2 | . 2 1 Gunslinging 1 | . 1 . Exploded . | . . . Melee . | . . . Uniques/NPCs Destroyed . | . . . Combat | -11 -10 -10 -------- Run | Yrd Mat Min Hostile Shots Fired 119 | . 80 39 Missed 25 | . 12 13 Damage Taken 1132 | . 774 358 Core 292 | . 147 145 Absorbed by Shields . | . . . Core Remaining (%) 100 | 100 . . Volleys Fired 111 | . 78 33 Largest 2 | . 2 2 Hottest 105 | . 85 105 Shots Fired 202 | . 147 55 Gun 191 | . 147 44 Cannon . | . . . Launcher . | . . . Special 11 | . . 11 Kinetic 103 | . 95 8 Thermal 99 | . 52 47 Explosive . | . . . Electromagnetic . | . . . Robot Hit Streak 13 | . 13 6 Robot Miss Streak 4 | . 4 3 Penetration Max . | . . . Secondary Targets 2 | . 2 . Max Gunslinging Chain 1 | . 1 . Shots Hit Robots 128 | . 104 24 Core Hits 46 | . 34 12 Critical Kills 1 | . 1 . Critical Parts Destroyed . | . . . Critical Strikes 2 | . 1 1 Burn 1 | . . 1 Destroy 1 | . 1 . Melee Attacks . | . . . Impact . | . . . Slashing . | . . . Piercing . | . . . Sneak Attacks . | . . . Combat Hostiles . | . . . Follow-up Attacks . | . . . Damage Inflicted 1383 | . 1016 367 Guns 1341 | . 1016 325 Cannons . | . . . Explosions . | . . . Melee . | . . . Ramming 18 | . . 18 Kinetic 548 | . 538 10 Thermal 817 | . 478 339 Explosive . | . . . Electromagnetic . | . . . Impact . | . . . Slashing . | . . . Piercing . | . . . Highest Corruption 1 | . . 1 Average Corruption 1 | . . 1 Corruption Purged . | . . . Corruption Blocked . | . . . Overload Shots . | . . . Overflow Damage . | . . . Projectiles . | . . . Explosions . | . . . Melee . | . . . Knockbacks . | . . . Impact . | . . . Kinetic . | . . . Secondary . | . . . Self-Inflicted Damage 18 | . . 18 Shots . | . . . Rammed . | . . . Targets Rammed . | . . . Kicked . | . . . Crushed . | . . . Highest Temperature 624 | . 86 624 Average Temperature 78 | . 20 149 Received Heat Transfer 477 | . 393 84 Effects 10 | . . 10 Shutdowns 1 | . . 1 Energy Bleed 1 | . . 1 Interference 3 | . . 3 Matter Decay 2 | . . 2 Damage (minor) 1 | . . 1 Damage (core) 2 | . . 2 Siege Activations . | . . . Robots Corrupted . | . . . Combat Hostiles . | . . . Parts Fried . | . . . Impact Corruptions . | . . . Robots Melted . | . . . Combat Hostiles . | . . . Parts Melted 4 | . 3 1 Heat Transferred 1939 | . 1084 855 Parts Sabotaged . | . . . Parts Stolen . | . . . Parts Stripped . | . . . Power Chain Reactions . | . . . Alert | -11 -10 -10 ------- Run | Yrd Mat Min Peak Influence 182 | . 182 160 Initial 45 | . . 45 Average 84 | . 107 66 Maximum Alert Level . | . . . Low Security (%) 100 | 100 100 100 Level 1 . | . . . Level 2 . | . . . Level 3 . | . . . Level 4 . | . . . Level 5 . | . . . High Security . | . . . Max Security . | . . . Squads Dispatched 3 | . 3 . Investigation 2 | . 2 . Extermination . | . . . Reinforcement 1 | . 1 . Assault . | . . . Garrison . | . . . Intercept . | . . . Searches Triggered . | . . . Construction Impeded . | . . . Haulers Reinforced . | . . . Active Scanning Responses . | . . . Cargo Convoy Interrupts . | . . . Stealth | -11 -10 -10 --------- Run | Yrd Mat Min Distress Signals . | . . . Communications Jammed . | . . . Distress Signals . | . . . Times Spotted 26 | . 18 8 Peak Tracking Total 6 | . 6 3 Tactical Retreats 1 | . . 1 Traps | -11 -10 -10 ------- Run | Yrd Mat Min Traps Triggered 2 | . 2 . Indirectly . | . . . Trap Hack Attempts . | . . . Triggered . | . . . Disarmed . | . . . Reprogrammed . | . . . Reused . | . . . Traps Extracted . | . . . Installed . | . . . Triggered . | . . . Machines | -11 -10 -10 ---------- Run | Yrd Mat Min Machines Disabled . | . . . Max in Single Turn . | . . . Machines Repaired . | . . . Machines Dismantled . | . . . Machines Sabotaged . | . . . Overloaded Fab Kills . | . . . Hacking | -11 -10 -10 --------- Run | Yrd Mat Min Machines Accessed . | . . . Terminals . | . . . Fabricators . | . . . Repair Stations . | . . . Recycling Units . | . . . Scanalyzers . | . . . Garrison Access . | . . . Total Hacks . | . . . Successful . | . . . Failed . | . . . Catastrophic . | . . . Database Lockouts . | . . . Manual . | . . . Terminals . | . . . Fabricators . | . . . Repair Stations . | . . . Recycling Units . | . . . Scanalyzers . | . . . Garrison Access . | . . . Terminal Hacks . | . . . Fabricator Hacks . | . . . Repair Station Hacks . | . . . Recycling Unit Hacks . | . . . Scanalyzer . | . . . Garrison Access Hacks . | . . . Unauthorized Hacks . | . . . Terminals . | . . . Fabricators . | . . . Repair Stations . | . . . Recycling Units . | . . . Scanalyzers . | . . . Garrison Access . | . . . Data Cores Recovered . | . . . Used . | . . . Hacking Detections . | . . . Full Trace Events . | . . . Feedback Events . | . . . Feedback Blocked . | . . . Robot Schematics Acquired . | . . . Robots Built . | . . . Authchips . | . . . Time . | . . . Total Robot Build Rating . | . . . Part Schematics Acquired . | . . . Parts Built . | . . . Authchips . | . . . Time . | . . . Total Part Build Rating . | . . . Parts Repaired . | . . . Time . | . . . Parts Recycled . | . . . Recycled Matter . | . . . Retrieved Matter . | . . . Retrieved Components . | . . . Parts Scanalyzed . | . . . Part Schematics Acquired . | . . . Parts Damaged . | . . . Bothacking | -11 -10 -10 ------------ Run | Yrd Mat Min Used RIF Installer . | . . . Robots Hacked . | . . . Non-combat . | . . . Combat . | . . . Robot Hacks Applied . | . . . Relay Couplers Released . | . . . Fabnet Peak Effective % . | . . . Robots Rewired . | . . . Allies Hacked . | . . . Hacks Repelled . | . . . Allies | -11 -10 -10 -------- Run | Yrd Mat Min Total Allies . | . . . Largest Group . | . . . Highest-Rated Group . | . . . Highest-Rated Ally . | . . . Total Orders . | . . . Ally Attacks . | . . . Total Damage . | . . . Kills . | . . . Allies Corrupted . | . . . Allies Melted . | . . . Intel | -11 -10 -10 ------- Run | Yrd Mat Min Robot Analysis Total . | . . . Derelict Logs Recovered 1 | . . 1 Drone Launches . | . . . Drone Recoveries . | . . . Exploration | -11 -10 -10 ------------- Run | Yrd Mat Min Turns Passed 1302 | 82 705 515 Spaces Moved 778 | 56 347 375 Core 5 | 1 3 1 Treads 126 | . 126 . Legs 387 | 55 218 114 Wheels 260 | . . 260 Hover . | . . . Flight . | . . . Fastest Speed 50 | 50 120 80 Average Speed 114 | 118 134 94 Slowest Speed 300 | 120 160 300 Overloaded Moves . | . . . Propulsion Burnouts . | . . . Robots Hopped . | . . . Cave-ins Triggered . | . . . Exploration Rate (%) 33 | 5 35 60 Regions Visited 2 Branch Regions 1 Pre-discovered Areas . | . . . Known Exits Taken . | . . . Unknown Exits Taken 2 | 1 1 . Scrap Searched 1 | . . 1 Spaces Dug . | . . . Terrain Destroyed . | . . . Melee . | . . . Projectile . | . . . AOE . | . . . Terrain Rammed 3 | . . 3 Walls Destroyed . | . . . Machines Disabled . | . . . Actions | -11 -10 -10 --------- Run | Yrd Mat Min Total 988 | 68 457 463 Wait 36 | . 9 27 Move 776 | 55 346 375 Hop . | . . . Pick Up 13 | 5 5 3 Fast Attach 18 | 7 7 4 Attach 4 | . 2 2 Detach 3 | 1 1 1 Swap 7 | . 3 4 Drop 17 | . 6 11 Fire 111 | . 78 33 Melee . | . . . Ram 3 | . . 3 Kick . | . . . Crush . | . . . Escape Stasis . | . . . Rewire . | . . . Trap . | . . . Miscellaneous . | . . . Route ------- -11/Scrapyard -10/Materials (discovered 2 exits: [*Mat] / [*Min]) -10/Mines History --------- Turn | Location | Event 5 | -11/Scrapyard | Discovered new exit (range 16) 83 | -11/Scrapyard | Entered Materials 299 | -10/Materials | Discovered new exit (range 15) 313 | -10/Materials | Build established: Mutant 591 | -10/Materials | Core integrity fell below 50% 632 | -10/Materials | Lost 3 parts (2n1w) 643 | -10/Materials | Discovered new exit (range 15) 788 | -10/Materials | Entered Mines 1164 | -10/Mines | Excavation squad dispatched 1164 | -10/Mines | A large section of the Mines collapsed 1297 | -10/Mines | Core integrity fell below 20% 1304 | -10/Mines | Core destroyed Last Messages --------------- 01280_ G-34 Mercenary destroyed. 01282_ R-06 Scavenger collects Imp. Terrain Scanner. 01283_ Power failure, Lgt. Ion Engine shutdown. 01286_ R-06 Scavenger collects Lgt. Ion Engine. 01288_ Lgt. Ion Engine destroyed. 01290_ Overheating: Matter decay (-63). 01290_ R-06 Scavenger collects Wheel. 01294_ Overheating: Energy bleed (-16). 01295_ Overheating: Sml. Laser damaged (-17). 01296_ G-34 Mercenary heat damages Aluminum Leg. 01296_ R-06 Scavenger collects Broken Lgt. Assault Rifle. 01297_ Overheating: Core damaged (-37). 01298_ Heat Sink melted. 01298_ G-34 Mercenary destroyed. 01300_ Overheating: Matter decay (-40). 01302_ Overheating: System interference. 01302_ Sml. Laser temporarily disabled. 01303_ Overheating: System interference. 01303_ Particle Gun temporarily disabled. 01304_ Overheating: Core damaged (-50). Map ----- +----------------------------------------------------+ | ????## #???????????????????????????????????? | | ?????# #???????????????????????????????????? | | ?????# #???????????????????????????????????? | | ?????# #???????????????????????????????????? | | ###??# #???????????????????????????????????? | | ##?# ###?????????????????????????????????? | | ### ##????????????????????????????????? | | ## #????????????????????????????????? | | # #????????????????????????????????? | | ## #????????????????????????????????? | | ## ##????????????????????????????????? | | # ####?????????????????????????????????? | | #####????????????????????????????????????? | | ##????????????????????????????????????????? | | ##????????????????????????????????????????? | | #????????????????????????????????????????? | | #????????????????????????????????????????? | | ##????????????????????????????????????????? | | ##????????????????????????????????????????? | | ##???????????????????????????????????????? | | ###??????????????????####???????????????? | | ##????????????????## ##????????#?????? | | ###??????#####???# #########; #?????? | | ######## ##?## # " % ; #?????? | | ## ######## %% " #?????? | | r @;%##### % ##?????? | | ### ## ##########???????????????? | | ??## ####### #######????????????????? | | ???#####?????## #??????????????????????? | | ??????????????### ##??????????????????????? | | ????????????????#####???????????????????????? | | ????????????????????????????????????????????? | | ????????????????????????????????????????????? | | ????????????????????????????????????????????? | | ????????????????????????????????????????????? | | ????????????????????????????????????????????? | | ????????????????????????????????????????????? | | ????????????????????????????????????????????? | | ????????????????????????????????????????????? | | ????????????????????????????????????????????? | | ????????????????????????????????????????????? | | ????????????????????????????????????????????? | | ????????????????????????????????????????????? | | ????????????????????????????????????????????? | | | | | | | | | | | | | +----------------------------------------------------+ Best States ------------- Heat Dissipation 25 Energy Generation 10 Energy Capacity 125 Matter Stores 400 Matter Capacity 400 Sight Range 16 Terrain Scan Density 10 Evasion (%) 55 Recoil Reduction 2 Item Schematics ----------------- None Robot Schematics ------------------ None Fabricated ------------ Nothing Alien Tech Used ----------------- None Achievements -------------- None Challenges ------------ None Game ------ Seed CloakThermalShotgun Manual? 0 Play Time 00:10:30 Cumulative 27.0 hours Start 2024.03.30 @ 15:01:55 End 2024.03.30 @ 15:09:49 Sessions 1 Manual Loads 0 Difficulty Rogue Special Mode None Game No. 61 Rogue 61 Adventurer 0 Explorer 0 Win Type - Total 0 Types 0/0/0/0/0/0/0/0/0 Lore% 19 Gallery% 25 Achievement% 23 Wizard Run 0 Options --------- Layout 0 ASCII 0 Keyboard 1 Movement Numpad Keybinds 0 Fullscreen 1 Font 18/X11 Map View 76x50 Zoom Use 0% Tactical HUD 1 Map Filters NONE Filters NONE Steam 1 RUN: 3ccbfe82-9328-4e93-b430-4bc1866ad96b